[Event "45th National Sub Junior 2019"]
[Site "Tiruchengode"]
[Date "2019.07.09"]
[Round "1.1"]
[White "Prawin K"]
[Black "Raja Rithvik R"]
[Result "0-1"]
[ECO "C50"]
[WhiteElo "1443"]
[BlackElo "2357"]
[Annotator "NA"]
[PlyCount "70"]
[EventDate "2019.07.09"]
[EventCountry "IND"]
[SourceTitle "playchess.com"]
[Source "ChessBase"]
[SourceQuality "1"]
[TimeControl "5400+30"]

1. e4 {[%emt 1:30:30]} e5 {[%emt 1:30:30]} 2. Nf3 {[%emt 0:00:30]} Nc6 {[%emt 0:00:30]} 3. Bc4 {[%emt 0:00:30]} Bc5 {[%emt 0:00:30]} 4. c3 {[%emt 0:00:30]} Nf6 {[%emt 0:00:30]} 5. d3 {[%emt 0:00:30]} O-O {[%emt 0:00:30]} 6. Bg5 {[%emt 0:00:30]} h6 {[%emt 0:00:30]} 7. Bh4 {[%emt 0:00:30]} Be7 {[%emt 0:00:30]} 8. O-O {[%emt 0:00:30]} d6 {[%emt 0:00:30]} 9. Nbd2 {[%emt 0:00:30]} Nh5 {[%emt 0:00:30]} 10. Bg3 {[%emt 0:00:30]} Nxg3 {[%emt 0:00:30]} 11. fxg3 {[%emt 0:00:30]} Na5 {[%emt 0:00:30]} 12. d4 {[%emt 0:00:30]} exd4 {[%emt 0:00:30]} 13. cxd4 {[%emt 0:00:30]} Nxc4 {[%emt 0:00:30]} 14. Nxc4 {[%emt 0:00:30]} d5 {[%emt 0:00:30]} 15. Ncd2 {[%emt 0:00:30]} dxe4 {[%emt 0:00:30]} 16. Nxe4 {[%emt 0:00:30]} Be6 {[%emt 0:00:30]} 17. Qe2 {[%emt 0:00:30]} c6 {[%emt 0:00:30]} 18. Nc3 {[%emt 0:00:30]} Qb6 {[%emt 0:00:30]} 19. Rfd1 {[%emt 0:00:30]} Rad8 {[%emt 0:00:30]} 20. Rd2 {[%emt 0:00:30]} Rfe8 {[%emt 0:00:30]} 21. Qf2 {[%emt 0:00:30]} Qa5 {[%emt 0:00:30]} 22. h4 {[%emt 0:00:30]} Bd6 {[%emt 0:00:30]} 23. Re1 {[%emt 0:00:30]} Bc4 {[%emt 0:00:30]} 24. Rc2 {[%emt 0:00:30]} Rxe1+ {[%emt 0:00:30]} 25. Qxe1 {[%emt 0:00:30]} Qf5 26. Rc1 Bc7 27. Na4 Bd5 28. Qf2 Qg4 29. Nc5 Bxg3 30. Qf1 Bxf3 31. Qxf3 Qxd4+ 32. Kf1 Qxb2 33. Nb3 Bxh4 34. g3 Rd6 35. Kg1 Bxg3 0-1

[Event "45th National Sub Junior 2019"]
[Site "Tiruchengode"]
[Date "2019.07.09"]
[Round "1.2"]
[White "Pranesh M"]
[Black "Aman Kumar"]
[Result "1-0"]
[ECO "B33"]
[WhiteElo "2343"]
[BlackElo "1547"]
[Annotator "NA"]
[PlyCount "74"]
[EventDate "2019.07.09"]
[EventCountry "IND"]
[SourceTitle "playchess.com"]
[Source "ChessBase"]
[SourceQuality "1"]
[TimeControl "5400+30"]

1. e4 {[%emt 1:30:30]} c5 {[%emt 1:30:30]} 2. Nf3 {[%emt 0:00:30]} Nc6 {[%emt 0:00:30]} 3. d4 {[%emt 0:00:30]} cxd4 {[%emt 0:00:30]} 4. Nxd4 {[%emt 0:00:30]} Nf6 {[%emt 0:00:30]} 5. Nc3 {[%emt 0:00:30]} e5 {[%emt 0:00:30]} 6. Ndb5 {[%emt 0:00:30]} d6 {[%emt 0:00:30]} 7. Bg5 {[%emt 0:00:30]} a6 {[%emt 0:00:30]} 8. Na3 {[%emt 0:00:30]} b5 {[%emt 0:00:30]} 9. Nd5 {[%emt 0:00:30]} Be7 {[%emt 0:00:30]} 10. Bxf6 {[%emt 0:00:30]} Bxf6 {[%emt 0:00:30]} 11. c3 {[%emt 0:00:30]} Bg5 {[%emt 0:00:30]} 12. Nc2 {[%emt 0:00:30]} O-O {[%emt 0:00:30]} 13. h4 {[%emt 0:00:30]} Bh6 {[%emt 0:00:30]} 14. g3 {[%emt 0:00:30]} Be6 {[%emt 0:00:30]} 15. Bg2 {[%emt 0:00:30]} Bxd5 {[%emt 0:00:30]} 16. Qxd5 {[%emt 0:00:30]} Ne7 {[%emt 0:00:30]} 17. Qd3 {[%emt 0:00:30]} Qb6 {[%emt 0:00:30]} 18. O-O {[%emt 0:00:30]} g6 {[%emt 0:00:30]} 19. Rad1 {[%emt 0:00:30]} Rad8 {[%emt 0:00:30]} 20. Qe2 {[%emt 0:00:30]} Kh8 {[%emt 0:00:30]} 21. Nb4 {[%emt 0:00:30]} f5 {[%emt 0:00:30]} 22. exf5 {[%emt 0:00:30]} Nxf5 {[%emt 0:00:30]} 23. Kh2 {[%emt 0:00:30]} Rc8 {[%emt 0:00:30]} 24. Be4 {[%emt 0:00:30]} Rc4 {[%emt 0:00:30]} 25. b3 {[%emt 0:00:30]} Rcc8 {[%emt 0:00:30]} 26. Nd5 {[%emt 0:00:30]} Qd8 {[%emt 0:00:30]} 27. Qg4 {[%emt 0:00:30]} Ne7 {[%emt 0:00:30]} 28. h5 {[%emt 0:00:30]} Nxd5 29. Rxd5 gxh5 30. Qxh5 Rf6 31. Rd3 Qf8 32. Kg2 Qg7 33. Rf3 Rxf3 34. Qxf3 Bd2 35. Rd1 Bxc3 36. Rxd6 Bd4 37. Rf6 Rc7 1-0

[Event "45th National Sub Junior 2019"]
[Site "Tiruchengode"]
[Date "2019.07.09"]
[Round "1.3"]
[White "Tawade Arnav"]
[Black "Rohith Krishna S"]
[Result "0-1"]
[ECO "D58"]
[WhiteElo "1436"]
[BlackElo "2312"]
[Annotator "NA"]
[PlyCount "86"]
[EventDate "2019.07.09"]
[EventCountry "IND"]
[SourceTitle "playchess.com"]
[Source "ChessBase"]
[SourceQuality "1"]
[TimeControl "5400+30"]

1. d4 {[%emt 0:00:00]} d5 {[%emt 0:00:15]} 2. c4 {[%emt 0:00:00]} e6 {[%emt 0:00:05]} 3. Nc3 {[%emt 0:00:00]} Nf6 {[%emt 0:00:34]} 4. Bg5 {[%emt 0:00:11]} Be7 {[%emt 0:00:08]} 5. Nf3 {[%emt 0:00:10]} O-O {[%emt 0:00:09]} 6. e3 {[%emt 0:00:10]} h6 {[%emt 0:00:09]} 7. Bh4 {[%emt 0:00:06]} b6 {[%emt 0:00:59]} 8. Be2 {[%emt 0:03:30]} Bb7 {[%emt 0:00:11]} 9. cxd5 {[%emt 0:00:13]} exd5 {[%emt 0:00:54]} 10. Bxf6 {[%emt 0:00:21]} Bxf6 {[%emt 0:00:06]} 11. b4 {[%emt 0:00:28]} Qd6 {[%emt 0:09:51]} 12. Qb3 {[%emt 0:12:33]} c6 {[%emt 0:01:08]} 13. O-O {[%emt 0:02:07]} Nd7 {[%emt 0:00:14]} 14. a4 {[%emt 0:16:59]} a5 {[%emt 0:02:51]} 15. bxa5 {[%emt 0:08:44]} Rxa5 {[%emt 0:00:49]} 16. e4 {[%emt 0:08:34]} Bd8 {[%emt 0:06:56]} 17. exd5 {[%emt 0:02:55]} cxd5 {[%emt 0:00:29]} 18. Nb5 {[%emt 0:04:41]} Qf4 {[%emt 0:00:13]} 19. Qe3 {[%emt 0:05:23]} Qxe3 {[%emt 0:07:56]} 20. fxe3 {[%emt 0:00:06]} Nf6 {[%emt 0:00:02]} 21. Ne5 {[%emt 0:06:15]} Ne4 {[%emt 0:00:47]} 22. Bd3 {[%emt 0:04:25]} f6 23. Ng6 {[%emt 0:00:30]} Rf7 24. Bxe4 {[%emt 0:00:30]} dxe4 25. Nd6 {[%emt 0:00:30]} Rd7 26. Nxb7 {[%emt 0:00:30]} Rxb7 27. Rf4 {[%emt 0:00:30]} f5 28. h4 {[%emt 0:00:30]} Bc7 29. Rf2 {[%emt 0:00:30]} Bg3 30. Rc2 {[%emt 0:00:30]} b5 31. Rc8+ {[%emt 0:00:30]} Kf7 32. Nh8+ {[%emt 0:00:30]} Ke7 33. Ng6+ {[%emt 0:00:30]} Kd7 34. Rac1 {[%emt 0:00:30]} bxa4 35. Nf8+ {[%emt 0:00:30]} Ke7 36. Ng6+ {[%emt 0:00:30]} Kf7 37. Nh8+ {[%emt 0:00:30]} Ke6 38. R1c6+ {[%emt 0:00:30]} Kd7 39. Rc1 {[%emt 0:00:30]} a3 40. Ng6 {[%emt 0:00:30]} a2 41. Nf8+ {[%emt 0:00:30]} Ke7 42. Ng6+ {[%emt 0:00:30]} Kf7 43. Nh8+ {[%emt 0:00:30]} Ke6 0-1

[Event "45th National Sub Junior 2019"]
[Site "Tiruchengode"]
[Date "2019.07.09"]
[Round "1.4"]
[White "Pranav Vijay"]
[Black "Mishra Kamad"]
[Result "1-0"]
[ECO "B08"]
[WhiteElo "2265"]
[BlackElo "1433"]
[Annotator "NA"]
[PlyCount "57"]
[EventDate "2019.07.09"]
[EventCountry "IND"]
[SourceTitle "playchess.com"]
[Source "ChessBase"]
[SourceQuality "1"]
[TimeControl "5400+30"]

1. e4 {[%emt 0:00:00]} d6 {[%emt 0:00:02]} 2. d4 {[%emt 0:00:00]} Nf6 {[%emt 0:00:06]} 3. Nc3 {[%emt 0:00:05]} g6 {[%emt 0:00:26]} 4. Nf3 {[%emt 0:00:49]} Bg7 {[%emt 0:00:38]} 5. Be3 {[%emt 0:00:31]} O-O {[%emt 0:00:48]} 6. h3 {[%emt 0:00:44]} a6 {[%emt 0:04:48]} 7. a4 {[%emt 0:01:24]} Nc6 {[%emt 0:00:47]} 8. a5 {[%emt 0:02:41]} e5 {[%emt 0:02:11]} 9. d5 {[%emt 0:05:27]} Ne7 {[%emt 0:01:56]} 10. g4 {[%emt 0:00:32]} Ne8 {[%emt 0:02:44]} 11. Rg1 {[%emt 0:01:15]} f5 {[%emt 0:05:48]} 12. gxf5 {[%emt 0:03:11]} gxf5 {[%emt 0:00:12]} 13. Bd3 {[%emt 0:02:18]} f4 {[%emt 0:01:16]} 14. Bd2 {[%emt 0:00:10]} Ng6 {[%emt 0:03:57]} 15. Qe2 {[%emt 0:06:13]} Bxh3 {[%emt 0:04:43]} 16. Ng5 {[%emt 0:01:39]} Bd7 {[%emt 0:03:37]} 17. O-O-O {[%emt 0:01:10]} Nf6 {[%emt 0:02:21]} 18. Qf3 {[%emt 0:02:29]} Qe8 {[%emt 0:02:36]} 19. Bf1 {[%emt 0:01:39]} h6 {[%emt 0:03:41]} 20. Ne6 {[%emt 0:00:16]} Bxe6 {[%emt 0:07:19]} 21. dxe6 {[%emt 0:00:14]} Kh7 {[%emt 0:05:15]} 22. Bh3 {[%emt 0:01:34]} Ne7 {[%emt 0:00:36]} 23. Qd3 {[%emt 0:02:59]} Qc6 {[%emt 0:03:38]} 24. Nd5 {[%emt 0:05:47]} Rae8 {[%emt 0:01:09]} 25. Nxe7 {[%emt 0:00:43]} Rxe7 {[%emt 0:00:17]} 26. Bf5+ {[%emt 0:00:38]} Kh8 {[%emt 0:00:38]} 27. Rg6 {[%emt 0:01:53]} d5 {[%emt 0:03:46]} 28. Qh3 {[%emt 0:02:34]} dxe4 {[%emt 0:03:13]} 29. Rxh6+ 1-0

[Event "45th National Sub Junior 2019"]
[Site "Tiruchengode"]
[Date "2019.07.09"]
[Round "1.5"]
[White "Ethan V Johnson"]
[Black "Samant Aditya S"]
[Result "0-1"]
[ECO "E26"]
[WhiteElo "1432"]
[BlackElo "2296"]
[Annotator "NA"]
[PlyCount "66"]
[EventDate "2019.07.09"]
[EventCountry "IND"]
[SourceTitle "playchess.com"]
[Source "ChessBase"]
[SourceQuality "1"]
[TimeControl "5400+30"]

1. d4 {[%emt 1:30:30]} Nf6 {[%emt 1:30:30]} 2. c4 {[%emt 0:00:30]} e6 {[%emt 0:00:30]} 3. Nc3 {[%emt 0:00:30]} Bb4 {[%emt 0:00:30]} 4. e3 {[%emt 0:00:30]} b6 {[%emt 0:00:30]} 5. Bd3 {[%emt 0:00:30]} Bb7 {[%emt 0:00:30]} 6. f3 {[%emt 0:00:30]} c5 {[%emt 0:00:30]} 7. a3 {[%emt 0:00:30]} Bxc3+ {[%emt 0:00:30]} 8. bxc3 {[%emt 0:00:30]} Nc6 {[%emt 0:00:30]} 9. Ne2 {[%emt 0:00:30]} d6 {[%emt 0:00:30]} 10. O-O {[%emt 0:00:30]} O-O {[%emt 0:00:30]} 11. e4 {[%emt 0:00:30]} h6 {[%emt 0:00:30]} 12. Qe1 {[%emt 0:00:30]} cxd4 {[%emt 0:00:30]} 13. cxd4 {[%emt 0:00:30]} e5 {[%emt 0:00:30]} 14. d5 {[%emt 0:00:30]} Na5 {[%emt 0:00:30]} 15. Rb1 {[%emt 0:00:30]} Rc8 16. Qg3 {[%emt 0:00:30]} Kh8 {[%emt 0:01:00]} 17. f4 {[%emt 0:00:30]} Nxc4 {[%emt 0:00:30]} 18. fxe5 {[%emt 0:00:30]} Nxe5 {[%emt 0:00:30]} 19. Bb2 {[%emt 0:00:30]} Nfd7 {[%emt 0:00:30]} 20. Rf5 {[%emt 0:00:30]} g6 {[%emt 0:00:30]} 21. Rf2 {[%emt 0:00:30]} Kh7 {[%emt 0:00:30]} 22. Rbf1 {[%emt 0:00:30]} Qe7 {[%emt 0:00:30]} 23. Bb1 {[%emt 0:00:30]} Ba6 {[%emt 0:00:30]} 24. h4 {[%emt 0:00:30]} h5 {[%emt 0:00:30]} 25. Bc1 {[%emt 0:00:30]} Ng4 {[%emt 0:00:30]} 26. Bg5 {[%emt 0:00:30]} f6 {[%emt 0:00:30]} 27. Bf4 {[%emt 0:00:30]} Nde5 {[%emt 0:00:30]} 28. Nd4 {[%emt 0:00:30]} Bxf1 {[%emt 0:00:30]} 29. Rxf1 {[%emt 0:00:30]} Rc4 {[%emt 0:00:30]} 30. Ne6 {[%emt 0:00:30]} Rfc8 {[%emt 0:00:30]} 31. Bxe5 {[%emt 0:00:30]} dxe5 {[%emt 0:00:30]} 32. Bd3 Rc3 33. Rf3 Qxa3 0-1

[Event "45th National Sub Junior 2019"]
[Site "Tiruchengode"]
[Date "2019.07.09"]
[Round "1.6"]
[White "Aaryan Varshney"]
[Black "Aashish Niranjan B"]
[Result "1-0"]
[ECO "E98"]
[WhiteElo "2284"]
[BlackElo "1428"]
[Annotator "NA"]
[PlyCount "103"]
[EventDate "2019.07.09"]
[EventCountry "IND"]
[SourceTitle "playchess.com"]
[Source "ChessBase"]
[SourceQuality "1"]
[TimeControl "5400+30"]

1. d4 {[%emt 0:00:00]} Nf6 {[%emt 0:00:00]} 2. Nf3 {[%emt 0:00:00]} g6 {[%emt 0:00:00]} 3. c4 {[%emt 0:00:00]} Bg7 {[%emt 0:00:00]} 4. Nc3 {[%emt 0:00:00]} O-O {[%emt 0:00:09]} 5. e4 {[%emt 0:00:00]} d6 {[%emt 0:00:02]} 6. Be2 {[%emt 0:00:00]} e5 {[%emt 0:00:27]} 7. O-O {[%emt 0:00:06]} Nc6 {[%emt 0:00:18]} 8. d5 {[%emt 0:00:09]} Ne7 {[%emt 0:00:02]} 9. Ne1 {[%emt 0:00:11]} Ne8 {[%emt 0:00:41]} 10. Be3 {[%emt 0:00:16]} f5 {[%emt 0:00:11]} 11. f3 {[%emt 0:00:02]} f4 {[%emt 0:00:02]} 12. Bf2 {[%emt 0:00:00]} g5 {[%emt 0:00:23]} 13. Nd3 {[%emt 0:00:09]} Ng6 {[%emt 0:00:14]} 14. c5 {[%emt 0:00:12]} Rf7 {[%emt 0:00:40]} 15. Rc1 {[%emt 0:00:45]} Bf8 {[%emt 0:01:09]} 16. Nb5 {[%emt 0:01:31]} b6 {[%emt 0:01:17]} 17. cxd6 {[%emt 0:00:53]} cxd6 {[%emt 0:00:06]} 18. a4 {[%emt 0:01:35]} a5 {[%emt 0:07:05]} 19. Na3 {[%emt 0:02:04]} h5 {[%emt 0:06:13]} 20. Nc4 {[%emt 0:02:03]} Nf6 {[%emt 0:02:14]} 21. Nxb6 {[%emt 0:01:26]} g4 {[%emt 0:00:12]} 22. Nxa8 {[%emt 0:00:54]} g3 {[%emt 0:00:28]} 23. Bb6 {[%emt 0:02:29]} gxh2+ {[%emt 0:01:08]} 24. Kh1 {[%emt 0:00:00]} Qe7 {[%emt 0:01:36]} 25. Rxc8 {[%emt 0:00:17]} h4 {[%emt 0:00:54]} 26. Rc7 {[%emt 0:07:54]} Nd7 {[%emt 0:00:14]} 27. Nf2 {[%emt 0:00:16]} h3 {[%emt 0:00:13]} 28. Nxh3 {[%emt 0:00:13]} Rg7 {[%emt 0:01:02]} 29. Bb5 {[%emt 0:00:21]} Qe8 {[%emt 0:01:41]} 30. Rxd7 {[%emt 0:00:20]} Rxd7 {[%emt 0:00:08]} 31. Nc7 {[%emt 0:00:24]} Qd8 {[%emt 0:00:37]} 32. Bxd7 {[%emt 0:00:09]} Qxd7 {[%emt 0:00:02]} 33. Ne6 {[%emt 0:00:07]} Be7 {[%emt 0:00:54]} 34. Qc2 {[%emt 0:00:19]} Bh4 {[%emt 0:00:16]} 35. Qc7 {[%emt 0:00:12]} Qxc7 {[%emt 0:00:05]} 36. Bxc7 {[%emt 0:00:07]} Bg3 {[%emt 0:00:12]} 37. Bxd6 {[%emt 0:00:08]} Kf7 {[%emt 0:00:31]} 38. Rc1 {[%emt 0:00:17]} Nf8 {[%emt 0:00:19]} 39. Bxf8 {[%emt 0:00:09]} Bh4 {[%emt 0:00:14]} 40. Rc7+ {[%emt 0:00:12]} Be7 {[%emt 0:00:03]} 41. Rxe7+ {[%emt 0:00:11]} Kf6 {[%emt 0:00:18]} 42. d6 {[%emt 0:00:20]} Kg6 {[%emt 0:00:15]} 43. d7 {[%emt 0:00:03]} Kf6 {[%emt 0:00:10]} 44. d8=Q {[%emt 0:00:01]} Kg6 {[%emt 0:00:05]} 45. Qxa5 {[%emt 0:00:21]} Kf6 {[%emt 0:00:05]} 46. Kxh2 {[%emt 0:00:08]} Kg6 {[%emt 0:00:05]} 47. Rg7+ {[%emt 0:00:18]} Kh6 {[%emt 0:00:07]} 48. Rg5+ {[%emt 0:00:30]} Kh7 {[%emt 0:00:03]} 49. Qc7+ {[%emt 0:00:08]} Kh8 {[%emt 0:00:03]} 50. Qxe5+ {[%emt 0:00:09]} Kh7 {[%emt 0:00:08]} 51. Qxf4 {[%emt 0:00:10]} Kh8 {[%emt 0:00:04]} 52. Qh4# {[%emt 0:00:32]} 1-0

[Event "45th National Sub Junior 2019"]
[Site "Tiruchengode"]
[Date "2019.07.09"]
[Round "1.7"]
[White "Alfien Jessurun"]
[Black "Kushagra Mohan"]
[Result "0-1"]
[ECO "D24"]
[WhiteElo "1428"]
[BlackElo "2250"]
[Annotator "NA"]
[PlyCount "48"]
[EventDate "2019.07.09"]
[EventCountry "IND"]
[SourceTitle "playchess.com"]
[Source "ChessBase"]
[SourceQuality "1"]
[TimeControl "5400+30"]

1. d4 {[%emt 0:00:00]} Nf6 {[%emt 0:00:00]} 2. c4 {[%emt 0:00:00]} e6 {[%emt 0:00:00]} 3. Nf3 {[%emt 0:00:01]} d5 {[%emt 0:00:00]} 4. Nc3 {[%emt 0:00:18]} a6 {[%emt 0:00:13]} 5. Bg5 {[%emt 0:01:09]} dxc4 {[%emt 0:00:24]} 6. e4 {[%emt 0:00:15]} b5 {[%emt 0:00:23]} 7. e5 {[%emt 0:03:07]} h6 {[%emt 0:00:13]} 8. Bh4 {[%emt 0:00:40]} g5 {[%emt 0:00:15]} 9. Nxg5 {[%emt 0:03:22]} hxg5 {[%emt 0:00:25]} 10. Bxg5 {[%emt 0:00:07]} Nbd7 {[%emt 0:01:34]} 11. exf6 {[%emt 0:05:08]} Bb7 {[%emt 0:02:56]} 12. Qe2 {[%emt 0:15:57]} Nb6 {[%emt 0:04:41]} 13. O-O-O {[%emt 0:05:35]} b4 {[%emt 0:01:42]} 14. Ne4 {[%emt 0:00:30]} Qd5 {[%emt 0:00:09]} 15. f3 {[%emt 0:02:00]} Qa5 {[%emt 0:00:29]} 16. Nc5 {[%emt 0:01:20]} Bd5 {[%emt 0:02:52]} 17. Kb1 {[%emt 0:01:48]} b3 {[%emt 0:05:16]} 18. a3 {[%emt 0:00:44]} c3 {[%emt 0:03:20]} 19. bxc3 {[%emt 0:00:27]} Nc4 {[%emt 0:00:38]} 20. Bc1 {[%emt 0:00:49]} b2 {[%emt 0:01:42]} 21. Bxb2 {[%emt 0:01:00]} Rb8 {[%emt 0:00:18]} 22. Qxc4 {[%emt 0:04:38]} Bxc4 {[%emt 0:00:09]} 23. Bxc4 {[%emt 0:00:08]} Bxc5 {[%emt 0:00:08]} 24. dxc5 {[%emt 0:00:08]} Qxc3 {[%emt 0:00:10]} 0-1

[Event "45th National Sub Junior 2019"]
[Site "Tiruchengode"]
[Date "2019.07.09"]
[Round "1.8"]
[White "Rathneesh R"]
[Black "Jeyasurya Umashankar R"]
[Result "1-0"]
[ECO "B01"]
[WhiteElo "2226"]
[BlackElo "1426"]
[Annotator "NA"]
[PlyCount "120"]
[EventDate "2019.07.09"]
[EventCountry "IND"]
[SourceTitle "playchess.com"]
[Source "ChessBase"]
[SourceQuality "1"]
[TimeControl "5400+30"]

1. e4 d5 2. exd5 Nf6 3. Nf3 Nxd5 4. d4 Bg4 5. Be2 e6 6. Ne5 Bxe2 7. Qxe2 c6 8. O-O Nd7 9. c4 N5f6 10. Re1 Bb4 11. Nc3 O-O 12. Bg5 Qa5 13. Qf3 Bd6 14. Bf4 Qc7 15. a3 {[%emt 1:37:30]} Rad8 {[%emt 1:37:30]} 16. Re3 {[%emt 0:00:30]} a6 {[%emt 0:00:30]} 17. b4 {[%emt 0:00:30]} h5 {[%emt 0:00:30]} 18. h3 {[%emt 0:00:30]} h4 {[%emt 0:00:30]} 19. Bh2 {[%emt 0:00:30]} Kh7 {[%emt 0:00:30]} 20. c5 {[%emt 0:00:30]} Bxe5 {[%emt 0:00:30]} 21. dxe5 {[%emt 0:00:30]} Nd5 {[%emt 0:00:30]} 22. Re4 {[%emt 0:00:30]} Nxc3 23. Rxh4+ {[%emt 0:00:30]} Kg8 {[%emt 0:01:00]} 24. Qxc3 {[%emt 0:00:30]} Rfe8 {[%emt 0:00:30]} 25. Rg4 {[%emt 0:00:30]} Nf8 {[%emt 0:00:30]} 26. Qg3 {[%emt 0:00:30]} Ng6 {[%emt 0:00:30]} 27. h4 {[%emt 0:00:30]} Rd2 {[%emt 0:00:30]} 28. Rf1 {[%emt 0:00:30]} Qd7 {[%emt 0:00:30]} 29. Re4 {[%emt 0:00:30]} Rd8 {[%emt 0:00:30]} 30. Qf3 {[%emt 0:00:30]} Rd3 {[%emt 0:00:30]} 31. Qg4 {[%emt 0:00:30]} Rd1 {[%emt 0:00:30]} 32. Ree1 {[%emt 0:00:30]} Rd4 {[%emt 0:00:30]} 33. Re4 {[%emt 0:00:30]} Rd1 {[%emt 0:00:30]} 34. Ree1 {[%emt 0:00:30]} Rd4 {[%emt 0:00:30]} 35. f4 {[%emt 0:00:30]} Qd5 {[%emt 0:00:30]} 36. Bg3 {[%emt 0:00:30]} Nxe5 {[%emt 0:00:30]} 37. Qg5 {[%emt 0:00:30]} Nd3 {[%emt 0:00:30]} 38. Qxd5 {[%emt 0:00:30]} R4xd5 {[%emt 0:00:30]} 39. Re2 {[%emt 0:00:30]} a5 {[%emt 0:00:30]} 40. f5 {[%emt 0:00:30]} e5 {[%emt 0:00:30]} 41. bxa5 {[%emt 0:00:30]} Rxc5 {[%emt 0:00:30]} 42. Rb1 {[%emt 0:00:30]} Rxa5 {[%emt 0:00:30]} 43. Rxb7 {[%emt 0:00:30]} Rxa3 {[%emt 0:00:30]} 44. Bxe5 {[%emt 0:00:30]} Re8 {[%emt 0:00:30]} 45. Rb8 {[%emt 0:00:30]} Ra8 {[%emt 0:00:30]} 46. Rxa8 {[%emt 0:00:30]} Rxa8 {[%emt 0:00:30]} 47. Bd6 {[%emt 0:00:30]} c5 {[%emt 0:00:30]} 48. Rc2 {[%emt 0:00:30]} Rc8 {[%emt 0:00:30]} 49. Rc4 {[%emt 0:00:30]} Rd8 {[%emt 0:00:30]} 50. Bc7 {[%emt 0:00:30]} Rd7 {[%emt 0:00:30]} 51. Ba5 {[%emt 0:00:30]} Rd5 {[%emt 0:00:30]} 52. g4 {[%emt 0:00:30]} Ne5 {[%emt 0:00:30]} 53. Re4 {[%emt 0:00:30]} f6 {[%emt 0:00:30]} 54. Kg2 {[%emt 0:00:30]} Rd4 {[%emt 0:00:30]} 55. Rxd4 {[%emt 0:00:30]} cxd4 {[%emt 0:00:30]} 56. g5 {[%emt 0:00:30]} d3 {[%emt 0:00:30]} 57. Kf2 {[%emt 0:00:30]} Nc4 {[%emt 0:00:30]} 58. Bb4 {[%emt 0:00:30]} d2 {[%emt 0:00:30]} 59. Ke2 d1=Q+ {[%emt 0:00:30]} 60. Kxd1 {[%emt 0:01:00]} Ne3+ {[%emt 0:00:30]} 1-0

[Event "45th National Sub Junior 2019"]
[Site "Tiruchengode"]
[Date "2019.07.09"]
[Round "1.9"]
[White "Divekar Prathamesh"]
[Black "Ajay Karthikeyan"]
[Result "0-1"]
[ECO "B92"]
[WhiteElo "1423"]
[BlackElo "2216"]
[Annotator "NA"]
[PlyCount "48"]
[EventDate "2019.07.09"]
[EventCountry "IND"]
[SourceTitle "playchess.com"]
[Source "ChessBase"]
[SourceQuality "1"]
[TimeControl "5400+30"]

1. e4 {[%emt 1:30:30]} c5 {[%emt 1:30:30]} 2. Nf3 {[%emt 0:00:30]} d6 {[%emt 0:00:30]} 3. d4 {[%emt 0:00:30]} cxd4 {[%emt 0:00:30]} 4. Nxd4 {[%emt 0:00:30]} Nf6 {[%emt 0:00:30]} 5. Nc3 {[%emt 0:00:30]} a6 {[%emt 0:00:30]} 6. Be2 {[%emt 0:00:30]} e5 {[%emt 0:00:30]} 7. Nb3 {[%emt 0:00:30]} Be7 {[%emt 0:00:30]} 8. O-O {[%emt 0:00:30]} O-O {[%emt 0:00:30]} 9. Be3 {[%emt 0:00:30]} Be6 {[%emt 0:00:30]} 10. f4 {[%emt 0:00:30]} exf4 {[%emt 0:00:30]} 11. Bxf4 {[%emt 0:00:30]} Nc6 {[%emt 0:00:30]} 12. Kh1 {[%emt 0:00:30]} d5 {[%emt 0:00:30]} 13. exd5 {[%emt 0:00:30]} Nxd5 {[%emt 0:00:30]} 14. Nxd5 {[%emt 0:00:30]} Bxd5 {[%emt 0:00:30]} 15. Bf3 {[%emt 0:00:30]} Bc4 {[%emt 0:00:30]} 16. Be2 {[%emt 0:00:30]} Qxd1 {[%emt 0:00:30]} 17. Rfxd1 {[%emt 0:00:30]} Bxe2 {[%emt 0:00:30]} 18. Rd7 {[%emt 0:00:30]} Bf6 {[%emt 0:00:30]} 19. Rxb7 {[%emt 0:00:30]} Bxb2 {[%emt 0:00:30]} 20. Re1 {[%emt 0:00:30]} Bg4 {[%emt 0:00:30]} 21. h3 {[%emt 0:00:30]} Be6 {[%emt 0:00:30]} 22. Nc5 {[%emt 0:00:30]} Bc3 {[%emt 0:00:30]} 23. Re2 {[%emt 0:00:30]} Bc4 {[%emt 0:00:30]} 24. Re4 {[%emt 0:00:30]} Bd5 {[%emt 0:00:30]} 0-1

[Event "45th National Sub Junior 2019"]
[Site "Tiruchengode"]
[Date "2019.07.09"]
[Round "1.10"]
[White "Nikhil Magizhnan"]
[Black "Vengatesh Krishnan C"]
[Result "1-0"]
[ECO "B50"]
[WhiteElo "2164"]
[BlackElo "1408"]
[Annotator "NA"]
[PlyCount "73"]
[EventDate "2019.07.09"]
[EventCountry "IND"]
[SourceTitle "playchess.com"]
[Source "ChessBase"]
[SourceQuality "1"]
[TimeControl "5400+30"]

1. e4 c5 2. Nf3 d6 3. c3 Nf6 4. Be2 e6 5. O-O Be7 6. Qc2 O-O 7. d4 h6 8. Bd3 a6 9. a4 b6 10. Bf4 Bb7 11. Nbd2 Nbd7 12. Rad1 Nh5 13. Be3 e5 14. d5 g5 15. g3 Ndf6 16. Ne1 Bc8 17. Ng2 Bh3 18. Be2 Ng4 19. b4 Kh7 20. a5 Rg8 21. axb6 Qd7 22. bxc5 {[%emt 1:41:00]} dxc5 {[%emt 1:41:00]} 23. Nc4 {[%emt 0:00:30]} Bxg2 {[%emt 0:00:30]} 24. Kxg2 {[%emt 0:00:30]} Nf4+ {[%emt 0:00:30]} 25. Bxf4 {[%emt 0:00:30]} gxf4 {[%emt 0:00:30]} 26. Bxg4 {[%emt 0:00:30]} Qxg4 {[%emt 0:00:30]} 27. Nxe5 {[%emt 0:00:30]} Qh5 {[%emt 0:00:30]} 28. Nf3 {[%emt 0:00:30]} Rg6 {[%emt 0:00:30]} 29. e5 {[%emt 0:00:30]} Rag8 {[%emt 0:00:30]} 30. d6 {[%emt 0:00:30]} Bh4 {[%emt 0:00:30]} 31. Qe4 {[%emt 0:00:30]} Kh8 {[%emt 0:00:30]} 32. Qxf4 {[%emt 0:00:30]} Rg4 {[%emt 0:00:30]} 33. Qe3 {[%emt 0:00:30]} Bxg3 {[%emt 0:00:30]} 34. hxg3 {[%emt 0:00:30]} Qg6 {[%emt 0:00:30]} 35. Nd2 {[%emt 0:00:30]} h5 {[%emt 0:00:30]} 36. Qf3 {[%emt 0:00:30]} f5 {[%emt 0:00:30]} 37. exf6 {[%emt 0:00:30]} 1-0